bitfinex/quotes_SOLUSD_20240626
["timestamp","ask_amount","ask_price","bid_price","bid_amount"]
[1719418488247,7.2802,137.36,137.31,7.2827]
[1719418488454,20.0,137.35,137.31,7.2827]
[1719418488854,7.2802,137.36,137.31,7.2827]
[1719418489170,20.0,137.38,137.31,7.2827]
[1719418489171,20.0,137.35,137.32,7.282]
[1719418489378,26.77,137.33,137.32,7.282]
[1719418490776,20.0,137.35,137.32,7.282]
[1719418490963,19.79298171,137.39,137.31,18.2064]
[1719418490964,20.0,137.36,137.31,18.2064]
[1719418491165,7.2796,137.37,137.32,7.282]
[1719418491378,20.0,137.36,137.32,7.2819]
[1719418492171,20.0,137.36,137.33,7.2816]
[1719418492356,7.2796,137.37,137.32,7.2821]
[1719418492558,20.0,137.36,137.32,7.2821]
[1719418492978,27.2802,137.36,137.31,25.4882]
[1719418493560,7.2806,137.35,137.31,25.4882]
[1719418494849,27.2802,137.36,137.31,25.4882]
[1719418495374,27.2802,137.36,137.27,63.1935]
[1719418495375,7.2807,137.35,137.3,7.283]
[1719418495581,20.0,137.36,137.26,26.77]
[1719418495761,7.2821,137.33,137.28,7.284]
[1719418495961,7.2823,137.32,137.27,7.2846]
[1719418496273,0.17,137.35,137.26,25.4976]
[1719418496274,7.2829,137.31,137.26,25.4976]
[1719418496661,7.2828,137.31,137.27,7.2847]
[1719418496971,7.2828,137.31,137.26,25.4975]
[1719418497178,7.2824,137.32,137.27,7.2845]
[1719418497366,20.0,137.31,137.27,7.2845]
[1719418498067,20.0,137.31,137.28,7.2843]
[1719418498269,20.0,137.32,137.28,7.2843]
[1719418498881,7.2827,137.31,137.27,7.2846]
[1719418499061,20.0,137.3,137.27,7.2846]
[1719418499975,20.0,137.31,137.27,7.2846]
[1719418500275,20.0,137.31,137.28,7.2843]
[1719418500482,20.0,137.31,137.29,7.2838]
[1719418500662,20.0,137.32,137.28,7.2842]
[1719418500863,27.2823,137.32,137.27,25.4957]
[1719418501074,20.0,137.32,137.25,22.8988]
[1719418501378,16.1212,137.34,137.25,22.8988]
[1719418501379,27.2819,137.33,137.28,7.2843]
[1719418501572,7.2823,137.32,137.28,25.4952]
[1719418501908,20.0,137.33,137.28,25.4952]
[1719418501909,20.0,137.31,137.28,25.4952]
[1719418502485,27.2823,137.32,137.28,25.4952]
[1719418502991,26.77,137.29,137.26,7.2852]
[1719418503164,7.2829,137.31,137.26,7.2852]
[1719418503483,20.0,137.32,137.23,7.2867]
[1719418503484,7.2844,137.28,137.23,7.2867]
[1719418503989,20.0,137.27,137.23,7.2867]
[1719418504166,20.0,137.27,137.24,7.2864]
[1719418504568,20.0,137.28,137.24,7.2864]
[1719418504768,20.0,137.28,137.25,7.2858]
[1719418504964,20.0,137.29,137.25,7.2858]
[1719418505159,20.0,137.29,137.25,18.2149]
[1719418505387,20.0,137.29,137.25,25.5006]
[1719418505590,27.2839,137.29,137.25,18.2149]
[1719418506185,7.2855,137.26,137.21,7.2879]
[1719418506366,20.0,137.25,137.21,7.2879]
[1719418507086,27.2861,137.25,137.21,7.288]
[1719418507285,20.0,137.25,137.22,7.2875]
[1719418507985,20.0,137.25,137.21,7.2878]
[1719418508787,27.2861,137.25,137.2,25.5091]
[1719418509370,7.2875,137.23,137.18,7.2894]
[1719418509566,20.0,137.25,137.17,18.2244]
[1719418509873,7.2877,137.22,137.17,25.5143]
[1719418510079,20.0,137.21,137.18,7.2896]
[1719418510669,20.0,137.22,137.19,7.2889]
[1719418510862,20.0,137.23,137.21,7.288]
[1719418511068,6.3217,137.25,137.2,7.2884]
[1719418511069,20.0,137.24,137.2,7.2884]
[1719418511269,20.0,137.24,137.21,18.2199]
[1719418511477,7.2855,137.26,137.21,25.5076]
[1719418511680,20.0,137.25,137.21,25.5076]
[1719418512376,20.0,137.25,137.22,7.2875]
[1719418512564,20.0,137.26,137.22,7.2875]
[1719418513065,20.0,137.26,137.21,18.2199]
[1719418513066,27.2854,137.26,137.21,25.5078]
[1719418513368,20.0,137.26,137.18,18.2231]
[1719418513586,20.17,137.27,137.2,18.2206]
[1719418514076,7.2855,137.26,137.21,8.74515085]
[1719418514283,20.0,137.25,137.21,7.2877]
[1719418514485,20.0,137.25,137.22,7.2875]
[1719418514881,20.0,137.26,137.22,7.2875]
[1719418515068,20.0,137.26,137.22,18.2187]
[1719418515269,20.0,137.27,137.24,7.2861]
[1719418515485,20.0,137.28,137.24,7.2861]
[1719418515983,20.0,137.28,137.21,16.5372]
[1719418516183,25.74389033,137.33,137.29,7.2838]
[1719418516184,20.0,137.3,137.29,7.2838]
[1719418516381,20.0,137.32,137.29,7.2838]
[1719418516977,20.0,137.32,137.3,7.2829]
[1719418517173,20.0,137.34,137.3,7.2829]
[1719418517582,7.2813,137.34,137.29,7.2838]
[1719418517771,7.2813,137.34,137.28,25.4949]
[1719418517977,7.2822,137.32,137.28,18.2108]
[1719418518177,3.83358171,137.35,137.28,18.2108]
[1719418518581,7.2823,137.32,137.28,18.2108]
[1719418518797,7.2819,137.33,137.28,25.4951]
[1719418519594,7.2822,137.32,137.28,18.2108]
[1719418519802,7.2828,137.31,137.26,7.2852]
[1719418520007,0.17,137.34,137.25,18.2143]
[1719418520207,7.2836,137.3,137.25,25.5]
[1719418520382,7.284,137.29,137.25,18.2143]
[1719418520576,33.7862,137.33,137.25,25.5002]
[1719418520577,7.2834,137.3,137.25,25.5002]
[1719418521396,15.5813,137.33,137.25,18.2143]
[1719418521570,15.5813,137.33,137.27,7.2845]
[1719418521571,27.2825,137.32,137.27,7.2845]
[1719418522004,20.0,137.32,137.28,7.2842]
[1719418523105,27.2823,137.32,137.27,25.4968]
[1719418523304,20.0,137.32,137.24,18.215]
[1719418523491,7.2837,137.3,137.25,7.2855]
[1719418523692,20.0,137.29,137.25,7.2855]
[1719418524175,27.2838,137.29,137.24,18.215]
[1719418524382,7.2853,137.27,137.22,13.7403]
[1719418524583,27.2859,137.26,137.21,42.0442]
[1719418524800,7.2863,137.25,137.2,7.2885]
[1719418525011,20.0,137.25,137.21,7.288]
[1719418525384,20.0,137.25,137.22,7.2875]
[1719418525699,27.2855,137.26,137.21,7.2878]
[1719418527101,20.0,137.26,137.22,7.2874]
[1719418528188,7.286,137.25,137.2,25.5093]
[1719418528391,27.2866,137.24,137.2,18.2211]
[1719418528977,7.2874,137.23,137.18,22.1116]
[1719418529188,27.2866,137.24,137.19,7.2891]
[1719418529611,7.2872,137.23,137.18,47.6252]
[1719418529799,7.2872,137.23,137.18,41.2916]
[1719418529800,20.0,137.22,137.18,41.2916]
[1719418529993,20.0,137.22,137.18,25.5136]
[1719418530179,20.0,137.22,137.21,7.288]
[1719418530497,27.286,137.25,137.2,25.5097]
[1719418532097,20.0,137.25,137.16,36.4525]
[1719418532300,20.0,137.28,137.24,7.2864]
[1719418532502,20.0,137.28,137.24,18.2162]
[1719418532983,20.0,137.28,137.24,25.5023]
[1719418533805,20.0,137.28,137.25,7.2858]
[1719418534582,27.2844,137.28,137.24,18.2162]
[1719418534785,27.2844,137.28,137.19,36.4438]
[1719418534786,20.0,137.28,137.22,7.2873]
[1719418534986,7.2857,137.26,137.21,25.5068]
[1719418535187,20.0,137.28,137.21,18.219]
[1719418535401,7.2856,137.26,137.21,7.2879]
[1719418535592,20.0,137.25,137.21,7.2879]
[1719418535797,20.0,137.25,137.22,7.2875]
[1719418536191,15.8027,137.29,137.19,36.4445]
[1719418536503,20.0,137.28,137.26,7.2853]
[1719418536808,20.0,137.28,137.25,7.2858]
[1719418537000,20.0,137.28,137.24,18.2161]
[1719418537001,20.0,137.28,137.26,7.2853]
[1719418537505,20.0,137.28,137.24,25.5025]
[1719418538387,20.0,137.28,137.25,7.2857]
[1719418540294,15.6572,137.32,137.28,18.2105]
[1719418540495,20.0,137.31,137.28,18.2105]
[1719418541311,27.2828,137.31,137.27,7.2845]
[1719418541500,20.0,137.31,137.22,36.4366]
[1719418541692,7.284,137.29,137.24,25.5023]
[1719418541900,20.0,137.28,137.24,25.5023]
[1719418542102,20.0,137.28,137.25,7.2857]
[1719418542487,20.0,137.29,137.25,7.2857]
[1719418542688,27.2839,137.29,137.24,25.5024]
[1719418542889,27.2839,137.29,137.26,7.2853]
[1719418542890,20.0,137.29,137.26,7.2853]
[1719418543085,20.0,137.3,137.26,7.2853]
[1719418543703,27.2834,137.3,137.25,7.2858]
[1719418543906,7.2839,137.29,137.24,25.5025]
[1719418544106,20.0,137.28,137.24,25.5025]
[1719418544393,20.0,137.28,137.25,7.2859]
[1719418545220,20.0,137.29,137.25,7.2859]
[1719418545900,27.284,137.29,137.24,25.5025]
[1719418546299,20.0,137.29,137.25,7.2859]
[1719418546506,20.0,137.29,137.24,18.2162]
[1719418546816,20.0,137.29,137.26,7.2853]
[1719418547011,20.0,137.3,137.26,7.2853]
[1719418547399,20.0,137.3,137.26,25.4987]
[1719418548096,20.0,137.3,137.27,7.2848]
[1719418548296,20.0,137.31,137.27,8.11518558]
[1719418548500,20.0,137.31,137.27,7.2848]
[1719418549498,20.0,137.31,137.28,7.2842]
[1719418550504,7.2811,137.35,137.3,7.2829]
[1719418551204,7.2811,137.35,137.3,8.73771798]
[1719418551598,7.2811,137.35,137.3,7.2829]
[1719418551802,7.282,137.33,137.29,18.2083]
[1719418552499,7.2812,137.34,137.3,7.2832]
[1719418552699,20.0,137.33,137.3,7.2832]
[1719418552919,20.0,137.33,137.29,25.492]
[1719418553920,20.0,137.33,137.3,7.2832]
[1719418554226,20.0,137.33,137.29,18.2083]
[1719418554623,20.0,137.33,137.29,25.492]
[1719418555020,27.2819,137.33,137.29,18.2083]
[1719418555320,20.0,137.33,137.29,18.2083]
[1719418555524,7.2812,137.34,137.3,7.283]
[1719418555706,20.0,137.33,137.3,7.283]
[1719418555907,20.0,137.33,137.29,25.4919]
[1719418556315,20.0,137.33,137.27,15.9099]
[1719418556516,7.2825,137.32,137.27,23.1943]
[1719418557321,7.2825,137.32,137.28,7.2842]
[1719418557505,7.2833,137.3,137.26,24.8733]
[1719418557829,7.2829,137.31,137.26,25.4981]
[1719418558127,7.2829,137.31,137.26,25.4983]
[1719418558425,7.2829,137.31,137.27,7.2848]
[1719418558426,20.0,137.3,137.27,7.2848]
[1719418558609,20.0,137.3,137.26,18.213]
[1719418558808,20.0,137.3,137.28,7.2841]
[1719418559005,20.0,137.3,137.27,7.2847]
[1719418559206,20.0,137.31,137.28,25.4948]
[1719418559403,20.0,137.32,137.28,25.4948]
[1719418560016,27.2823,137.32,137.28,18.2109]
[1719418560218,20.0,137.32,137.25,18.2136]
[1719418560430,7.2838,137.3,137.25,25.4992]
[1719418560608,7.2838,137.3,137.25,18.2136]
[1719418560806,0.17,137.31,137.25,18.2136]
[1719418561139,7.2828,137.31,137.26,7.2853]
[1719418561441,15.111,137.29,137.2,7.2881]
[1719418561620,7.2856,137.26,137.21,7.2879]
[1719418561956,20.0,137.25,137.21,7.2879]
[1719418562314,27.286,137.25,137.2,7.2884]
[1719418562912,20.0,137.25,137.21,7.2879]
[1719418564118,7.287,137.23,137.19,18.2217]
[1719418564317,20.0,137.22,137.18,7.2895]
[1719418565518,20.0,137.22,137.19,7.2891]
[1719418565713,20.0,137.23,137.19,7.2891]
[1719418566414,20.0,137.23,137.18,25.5136]
[1719418566415,27.2871,137.23,137.18,25.5136]
[1719418567240,7.2876,137.22,137.18,18.224]
[1719418567416,20.0,137.21,137.18,18.224]
[1719418567617,20.0,137.21,137.15,18.2275]
[1719418567933,27.2882,137.21,137.16,7.2904]
[1719418568512,20.0,137.21,137.16,7.2904]
[1719418568733,20.0,137.21,137.17,18.2253]
[1719418569239,20.0,137.21,137.18,7.2896]
[1719418569474,20.0,137.21,137.17,25.5153]
[1719418569634,27.2882,137.21,137.17,18.2253]
[1719418569824,20.0,137.21,137.17,25.5154]
[1719418570019,27.2881,137.21,137.17,18.2253]
[1719418570329,27.2881,137.21,137.16,7.2906]
[1719418571547,7.2887,137.2,137.15,7.2911]
[1719418571744,20.0,137.19,137.15,7.2911]
[1719418572048,20.0,137.19,137.16,7.2907]
[1719418572425,20.0,137.2,137.16,7.2907]
[1719418573131,20.0,137.2,137.14,18.2285]
[1719418573460,7.2894,137.19,137.14,25.5202]
[1719418573752,20.0,137.18,137.14,25.5202]
[1719418574644,20.0,137.18,137.15,7.2912]
[1719418575430,27.2897,137.18,137.14,25.5202]
[1719418576442,20.0,137.18,137.15,7.2912]
[1719418576639,20.17,137.21,137.15,7.2912]
[1719418577223,7.289,137.2,137.15,7.2912]
[1719418577440,20.0,137.19,137.15,7.2912]
[1719418577645,27.2892,137.19,137.15,7.2912]
[1719418578247,27.2892,137.19,137.14,18.2285]
[1719418578547,7.2899,137.18,137.14,18.2285]
[1719418578747,20.0,137.17,137.14,18.2285]
[1719418581631,20.0,137.17,137.14,25.5202]
[1719418582150,20.0,137.17,137.14,18.2285]
[1719418583552,20.0,137.17,137.14,25.5202]
[1719418583953,20.0,137.17,137.14,18.2285]
[1719418584247,20.0,137.17,137.16,7.2907]
[1719418584835,22.05158171,137.23,137.18,7.2893]
[1719418584836,11.12098171,137.23,137.18,7.2893]
[1719418585033,26.84,137.19,137.18,7.2893]
[1719418585428,26.84,137.19,137.17,18.2254]
[1719418585638,26.84,137.18,137.17,18.2254]
[1719418585950,26.84,137.18,137.16,7.2906]
[1719418586146,7.2886,137.2,137.15,47.6606]
[1719418586538,7.2883,137.21,137.16,7.2905]
[1719418586727,26.84,137.18,137.16,7.2905]
[1719418586922,7.2883,137.21,137.16,7.2905]
[1719418587144,20.0,137.2,137.17,25.5155]
[1719418587729,20.0,137.21,137.19,18.2226]
[1719418588053,26.84,137.2,137.19,18.2226]
[1719418588249,46.84,137.2,137.18,7.2896]
[1719418588450,23.83358171,137.23,137.18,7.2896]
[1719418588951,27.2879,137.22,137.17,8.74792314]
[1719418589153,7.2879,137.22,137.17,8.74792314]
[1719418589356,20.0,137.21,137.17,8.74792314]
[1719418591442,27.2882,137.21,137.17,7.2902]
[1719418591945,20.0,137.21,137.16,25.5162]
[1719418592151,7.2887,137.2,137.16,25.5162]
[1719418592333,26.84,137.17,137.16,25.5162]
[1719418592533,26.84,137.17,137.16,18.2256]
[1719418592732,26.84,137.17,137.15,22.1414]
[1719418593553,7.2891,137.19,137.15,29.4324]
[1719418594535,7.2888,137.2,137.16,7.2907]
[1719418594857,20.0,137.19,137.16,7.2907]
[1719418595748,20.0,137.19,137.15,47.6603]
[1719418597354,20.0,137.19,137.16,7.2906]
[1719418597852,20.0,137.19,137.15,40.3693]
[1719418597853,20.0,137.19,137.17,7.2901]
[1719418598031,3.83358171,137.23,137.19,7.2891]
[1719418598237,269.70388171,137.27,137.22,7.287]
[1719418598453,269.70388171,137.27,137.21,25.5078]
[1719418598454,30.0,137.23,137.21,25.5078]
[1719418598661,30.0,137.23,137.19,7.2887]
[1719418598842,30.0,137.23,137.15,22.1414]
[1719418598843,26.84,137.2,137.16,7.2905]
[1719418599054,30.0,137.23,137.16,7.2905]
[1719418599055,26.84,137.18,137.16,7.2905]
[1719418599489,26.84,137.18,137.17,7.2902]
[1719418600654,26.84,137.18,137.16,7.2904]
[1719418602353,7.2882,137.21,137.16,7.2904]
[1719418602665,20.0,137.2,137.16,7.2904]
[1719418603054,20.0,137.2,137.17,7.29]
[1719418603573,20.0,137.21,137.17,7.29]
[1719418604770,20.0,137.21,137.18,7.2895]
[1719418605477,26.84,137.19,137.18,25.5136]
[1719418606065,20.0,137.21,137.19,7.289]
[1719418606456,27.2871,137.23,137.19,7.289]
[1719418606776,7.2876,137.22,137.18,25.5136]
[1719418607274,26.84,137.19,137.18,25.5136]
[1719418608170,26.84,137.19,137.16,18.2267]
[1719418608388,20.0,137.23,137.16,18.2267]
[1719418608569,0.17,137.22,137.16,18.2267]
[1719418608947,26.84,137.2,137.15,23.202]
[1719418609146,20.0,137.19,137.15,23.202]
[1719418609382,7.2898,137.18,137.14,25.5211]
[1719418609669,7.2902,137.17,137.13,7.2922]
[1719418609871,7.2898,137.18,137.13,7.2922]
[1719418610076,20.0,137.17,137.14,7.2917]
[1719418611576,20.0,137.18,137.14,7.2917]
[1719418613370,27.2897,137.18,137.13,7.2921]
[1719418614266,20.0,137.18,137.12,18.232]
[1719418614500,20.17,137.19,137.12,18.232]
[1719418614681,0.17,137.18,137.12,18.232]
[1719418614859,0.17,137.18,137.09,18.235]
[1719418615057,7.2921,137.14,137.09,18.235]
[1719418615263,20.0,137.13,137.11,7.2929]
[1719418615560,20.0,137.13,137.1,18.2336]
[1719418616762,7.2911,137.16,137.11,7.2933]
[1719418616968,20.0,137.15,137.11,7.2933]
[1719418617457,20.0,137.15,137.12,7.2928]
[1719418617874,20.0,137.15,137.11,7.2931]
[1719418618071,20.0,137.15,137.1,18.2336]
[1719418618072,27.2913,137.15,137.1,25.5274]
[1719418618261,27.2914,137.15,137.1,25.5274]
[1719418618776,27.2914,137.15,137.11,7.2933]
[1719418618956,20.0,137.15,137.13,7.2921]
[1719418619157,7.2903,137.17,137.13,7.2921]
[1719418619354,20.0,137.16,137.13,7.2921]
[1719418619978,20.0,137.17,137.14,18.2288]
[1719418620161,20.0,137.17,137.12,7.2926]
[1719418620162,7.2904,137.17,137.12,7.2926]
[1719418620369,27.2907,137.16,137.12,7.2926]
[1719418620566,7.2914,137.15,137.11,18.2326]
[1719418620782,38.227,137.16,137.08,34.7508]
[1719418620965,7.2927,137.13,137.08,42.0455]
[1719418621665,38.227,137.16,137.09,7.2942]
[1719418621666,7.292,137.14,137.09,7.2942]
[1719418621865,20.0,137.13,137.08,18.2366]
[1719418622082,26.84,137.09,137.08,18.2366]
[1719418622391,26.84,137.09,137.08,25.5316]
[1719418622570,34.1346,137.09,137.05,25.5367]
[1719418622764,7.2946,137.09,137.05,25.5367]
[1719418623159,18.2297,137.14,137.05,25.5367]
[1719418623396,7.2949,137.09,137.05,18.2403]
[1719418623561,20.0,137.08,137.04,23.3926]
[1719418624464,20.0,137.08,137.03,7.2975]
[1719418624692,7.2951,137.08,137.03,7.2975]
[1719418624882,20.0,137.07,137.04,7.297]
[1719418625088,20.0,137.07,137.03,7.2974]
[1719418625287,20.0,137.07,137.02,18.2442]
[1719418625573,20.0,137.07,137.04,25.5394]
[1719418625780,20.0,137.08,137.04,25.5394]
[1719418625973,27.295,137.08,137.04,25.5394]
[1719418626392,7.2955,137.07,137.01,24.4775]
[1719418626587,20.0,137.06,137.01,24.4775]
[1719418626801,20.0,137.06,137.03,7.2976]
[1719418626985,20.0,137.06,137.03,18.2436]
[1719418627296,20.0,137.1,137.05,7.2966]
[1719418627477,27.294,137.1,137.05,18.2412]
[1719418627686,20.0,137.1,137.06,7.2957]
[1719418627883,15.7151,137.15,137.01,64.6236]
[1719418628089,15.7151,137.15,137.11,7.2933]
[1719418628090,7.2916,137.15,137.11,7.2933]
[1719418628389,20.0,137.14,137.11,7.2933]
[1719418628595,20.0,137.14,137.1,7.2937]
[1719418628786,20.0,137.14,137.1,8.23964239]
[1719418629179,7.2903,137.17,137.12,7.2927]
[1719418629375,281.65728171,137.19,137.11,19.17887339]
[1719418629376,7.29,137.18,137.13,7.2922]
[1719418629695,20.0,137.17,137.11,18.233]
[1719418629874,20.0,137.17,137.13,7.292]
[1719418630074,20.0,137.17,137.14,7.2917]
[1719418630275,27.2898,137.18,137.13,25.5227]
[1719418630479,263.43358171,137.19,137.1,25.5276]
[1719418630480,7.2913,137.15,137.1,25.5276]
[1719418631390,7.2909,137.16,137.11,7.2932]
[1719418631694,7.2921,137.14,137.1,18.2339]
[1719418631882,7.2921,137.14,137.09,23.9296]
[1719418631883,7.2929,137.12,137.08,6.0055]
[1719418632083,6.2836,137.18,137.05,15.1061]
[1719418632284,20.34,137.17,137.06,1.45743183]
[1719418632494,7.2924,137.13,137.08,7.2946]
[1719418632694,18.2285,137.15,137.06,18.2396]
[1719418632996,18.2285,137.15,137.06,19.69861908]
[1719418632997,20.34,137.14,137.06,19.69861908]
[1719418633667,7.2926,137.13,137.08,7.2945]
[1719418633868,20.0,137.12,137.09,7.2943]
[1719418634598,20.0,137.13,137.09,7.2943]
[1719418634979,20.0,137.13,137.05,33.3465]
[1719418635179,7.2937,137.11,137.05,33.3465]
[1719418635383,20.17,137.14,137.07,18.2382]
[1719418635693,7.2927,137.13,137.08,7.2948]
[1719418635874,20.0,137.12,137.08,7.2948]
[1719418636373,27.2929,137.12,137.07,25.5335]
[1719418636594,7.2934,137.11,137.07,25.5335]
[1719418636787,20.0,137.12,137.08,7.2949]
[1719418637022,20.17,137.14,137.09,18.236]
[1719418637306,0.17,137.14,137.08,7.2948]
[1719418637503,20.0,137.13,137.08,7.2948]
[1719418637682,20.0,137.13,137.05,15.1061]
[1719418637683,20.0,137.13,137.06,18.239]
[1719418637881,20.0,137.13,137.1,18.2344]
[1719418638081,20.0,137.14,137.1,18.2344]
[1719418638293,6.2836,137.18,137.07,19.69620482]
[1719418638294,38.2256,137.17,137.07,19.69620482]
[1719418638497,0.17,137.16,137.07,19.69620482]
[1719418638690,18.2286,137.15,137.06,1.45878646]
[1719418638895,20.17,137.14,137.05,15.1061]
[1719418639086,20.17,137.14,137.05,7.2965]
[1719418639087,7.2941,137.1,137.05,7.2965]
[1719418639294,7.2953,137.08,137.04,24.6287]
[1719418639533,7.2953,137.08,137.03,7.2975]
[1719418640182,7.2946,137.09,137.04,7.297]
[1719418640482,20.0,137.08,137.05,7.2966]
[1719418641316,20.0,137.08,137.03,18.2437]
[1719418641530,7.2955,137.07,137.03,18.2437]
[1719418641811,27.2961,137.06,137.01,13.932]
[1719418642394,7.2967,137.05,137.0,25.5467]
[1719418642696,20.0,137.04,136.99,0.8513774]
[1719418642901,0.17,137.05,136.99,0.8513774]
[1719418643199,7.2973,137.04,136.99,8.1509774]
[1719418643394,20.0,137.03,136.99,8.1509774]
[1719418643608,20.0,137.03,136.99,19.1005774]
[1719418643803,20.0,137.03,137.01,7.2984]
[1719418644014,20.17,137.05,137.01,7.2984]
[1719418644418,20.17,137.05,137.01,18.2466]
[1719418644419,20.0,137.05,137.01,18.2466]
[1719418644610,7.2961,137.06,137.01,25.5448]
[1719418644809,20.0,137.08,137.03,7.2976]
[1719418644810,20.0,137.05,137.03,7.2976]
[1719418644993,20.0,137.05,137.01,18.2466]
[1719418645199,20.0,137.05,137.02,7.2979]
[1719418645399,20.0,137.06,137.02,7.2979]
[1719418645795,20.0,137.06,136.99,0.8513774]
[1719418645995,20.0,137.06,137.03,18.2438]
[1719418646208,7.2945,137.09,137.03,18.2438]
[1719418646412,20.0,137.08,137.05,18.2414]
[1719418646606,20.0,137.08,137.06,7.2959]
[1719418646904,3.83358171,137.11,137.02,24.4909]
[1719418646905,20.0,137.09,137.02,24.4909]
[1719418647105,23.83358171,137.11,137.02,24.4909]
[1719418647319,7.2953,137.08,137.03,7.2971]
[1719418647625,20.0,137.07,137.01,7.2986]
[1719418647821,0.17,137.06,136.99,26.3989774]
[1719418648004,15.7524,137.06,136.99,26.3989774]
[1719418648209,7.2976,137.03,136.99,19.0996774]
[1719418648518,20.0,137.02,136.99,26.3993774]
[1719418648703,20.0,137.02,136.99,19.0996774]
[1719418648899,20.17,137.05,136.99,0.8513774]
[1719418649097,0.17,137.04,136.99,0.8513774]
[1719418649300,7.2983,137.02,136.99,0.8513774]
[1719418649513,20.0,137.01,136.99,0.8513774]
[1719418650109,20.0,137.02,136.99,0.8513774]
[1719418651106,27.2982,137.02,136.99,0.8513774]
[1719418651515,20.0,137.02,136.99,0.8513774]
[1719418652225,20.0,137.02,137.0,25.5471]
[1719418652525,20.0,137.05,137.01,7.2985]
[1719418653406,7.2971,137.04,137.0,18.2481]
[1719418653614,20.0,137.03,137.0,18.2481]
[1719418654128,27.2977,137.03,136.99,8.1509774]
[1719418654309,20.0,137.03,136.99,8.1509774]
[1719418655319,20.0,137.03,137.0,7.2992]
[1719418655518,20.0,137.04,137.01,7.2986]
[1719418655724,20.0,137.04,137.02,8.75743244]
[1719418655926,15.4179,137.09,137.02,8.12159232]
[1719418655927,20.0,137.07,137.02,8.12159232]
[1719418656232,7.2955,137.07,137.03,7.2975]
[1719418656422,20.0,137.06,137.04,7.2971]
[1719418656610,33.6136,137.13,137.03,18.2439]
[1719418656815,7.2942,137.1,137.05,25.5376]
[1719418657142,20.0,137.09,137.06,7.296]
[1719418657435,27.2935,137.11,137.06,7.296]
[1719418657633,7.2939,137.1,137.06,7.296]
[1719418657938,27.2945,137.09,137.05,18.2414]
[1719418658226,27.2945,137.09,137.05,0.47130972]
[1719418658432,27.2945,137.09,137.05,7.76780972]
[1719418658628,20.0,137.09,137.05,7.76780972]
[1719418658830,7.2936,137.11,137.06,18.2398]
[1719418659130,5.95129163,137.15,137.06,18.2398]
[1719418659131,7.293,137.12,137.07,7.76690195]
[1719418659307,7.2934,137.11,137.07,7.2954]
[1719418659513,7.2931,137.12,137.07,7.76724304]
[1719418659923,20.0,137.11,137.07,7.76724304]
[1719418660233,27.2935,137.11,137.07,0.47184304]
[1719418660416,27.2935,137.11,137.06,25.5356]
[1719418661132,7.2942,137.1,137.06,18.2398]
[1719418661309,7.2945,137.09,137.05,7.2964]
[1719418662037,7.2953,137.08,137.03,25.5405]
[1719418662712,20.0,137.11,137.03,18.2431]
[1719418662918,7.2956,137.07,137.02,7.298]